bitfinex-derivatives/quotes_SOLF0:USTF0_20241101
["timestamp","ask_amount","ask_price","bid_price","bid_amount"]
[1730471305333,2.8805,173.68,173.62,4.12]
[1730471305533,2.8805,173.68,173.64,2.881]
[1730471306145,11.06904662,173.69,173.64,2.881]
[1730471306340,11.06904662,173.69,173.51,13.95208737]
[1730471306543,11.06904662,173.67,173.56,11.06904662]
[1730471306746,2.8811,173.64,173.56,11.06904662]
[1730471307246,11.06904662,173.67,173.56,11.06904662]
[1730471307641,2.6599,173.68,173.59,11.06904662]
[1730471307840,2.8807,173.66,173.63,2.8811]
[1730471308642,2.6599,173.68,173.61,4.12]
[1730471308843,2.8811,173.64,173.61,7.0015]
[1730471309346,11.06904662,173.67,173.61,7.0015]
[1730471309547,2.6599,173.68,173.61,4.12]
[1730471309741,11.06904662,173.72,173.61,4.12]
[1730471310148,2.8804,173.68,173.64,2.881]
[1730471310446,11.06904662,173.72,173.64,2.881]
[1730471310748,2.8806,173.67,173.64,2.881]
[1730471312248,11.06904662,173.69,173.62,2.8813]
[1730471312443,1.243,173.68,173.62,2.8813]
[1730471312750,1.243,173.68,173.55,1.3414]
[1730471312751,2.8813,173.63,173.59,2.8818]
[1730471312949,11.06904662,173.65,173.59,2.8818]
[1730471313155,11.06904662,173.65,173.57,4.12]
[1730471313347,2.8812,173.64,173.6,2.8816]
[1730471313854,11.06904662,173.65,173.56,4.12]
[1730471314048,1.3404,173.67,173.55,1.3414]
[1730471314049,11.06904662,173.62,173.55,1.3414]
[1730471314254,11.06904662,173.62,173.54,30.69405703]
[1730471314467,2.8818,173.6,173.56,2.8823]
[1730471315647,2.882,173.59,173.55,2.8825]
[1730471315850,1.3404,173.67,173.5,1.3044]
[1730471315851,11.06904662,173.58,173.5,4.19615509]
[1730471316049,11.06904662,173.58,173.51,4.12]
[1730471316347,11.06904662,173.58,173.49,11.06904662]
[1730471316348,2.8825,173.56,173.52,2.8829]
[1730471316549,11.06904662,173.58,173.49,15.18904662]
[1730471316949,1.2639,173.6,173.5,2.8833]
[1730471316950,11.06904662,173.56,173.5,2.8833]
[1730471317850,11.06904662,173.56,173.51,2.8832]
[1730471319952,2.8826,173.55,173.51,2.8832]
[1730471320354,11.06904662,173.56,173.46,11.06904662]
[1730471320542,2.8831,173.52,173.48,2.8836]
[1730471322149,2.8833,173.51,173.47,2.8837]
[1730471322354,11.06904662,173.54,173.45,4.1]
[1730471322553,11.06904662,173.54,173.44,11.06904662]
[1730471322554,11.06904662,173.54,173.44,15.16904662]
[1730471324049,2.8832,173.52,173.47,2.8839]
[1730471324254,2.5067,173.53,173.47,2.8839]
[1730471324454,2.8835,173.5,173.46,2.8839]
[1730471324861,3.7554,173.53,173.44,15.16904662]
[1730471325053,6.6384,173.53,173.44,15.16904662]
[1730471325253,1.2635,173.53,173.46,11.06904662]
[1730471325860,11.06904662,173.56,173.51,2.8831]
[1730471325861,2.8826,173.55,173.51,2.8831]
[1730471326059,11.06904662,173.56,173.46,11.06904662]
[1730471326264,11.06904662,173.53,173.44,11.06904662]
[1730471326562,11.06904662,173.53,173.44,15.16904662]
[1730471326758,11.06904662,173.53,173.44,4.1]
[1730471327159,11.06904662,173.51,173.44,4.1]
[1730471327465,2.8836,173.49,173.44,4.1]
[1730471327672,11.06904662,173.51,173.44,4.1]
[1730471327962,11.06904662,173.53,173.44,15.16904662]
[1730471328154,11.06904662,173.56,173.44,15.16904662]
[1730471328357,11.06904662,173.56,173.5,2.8832]
[1730471328968,2.8828,173.54,173.5,2.8832]
[1730471329473,2.8829,173.53,173.5,2.8832]
[1730471329667,11.06904662,173.56,173.51,2.8831]
[1730471330066,2.8826,173.55,173.51,2.8831]
[1730471330963,2.8829,173.53,173.49,2.8834]
[1730471333666,11.06904662,173.56,173.44,15.16904662]
[1730471333862,11.06904662,173.69,173.54,11.06904662]
[1730471334059,3.9395,173.68,173.59,11.06904662]
[1730471334261,2.8809,173.66,173.6,2.8817]
[1730471334466,3.9395,173.68,173.62,11.06904662]
[1730471334870,3.9395,173.68,173.64,11.06904662]
[1730471335276,2.8796,173.73,173.66,13.94964662]
[1730471335476,1.3315,173.73,173.66,13.94964662]
[1730471335869,1.3315,173.73,173.67,2.8805]
[1730471335870,2.8799,173.72,173.67,2.8805]
[1730471336372,1.3315,173.73,173.64,11.06904662]
[1730471336877,2.8801,173.7,173.65,2.8807]
[1730471337379,2.8801,173.7,173.66,2.8807]
[1730471337781,1.3315,173.73,173.64,11.06904662]
[1730471338075,1.3315,173.73,173.64,13.95004662]
[1730471338871,1.3315,173.73,173.65,2.8809]
[1730471339269,11.06904662,173.72,173.64,11.06904662]
[1730471339476,2.8805,173.68,173.64,13.94994662]
[1730471340274,2.8805,173.68,173.64,11.06904662]
[1730471340471,2.8805,173.68,173.65,2.8809]
[1730471340869,1.3315,173.73,173.64,11.06904662]
[1730471341078,2.8801,173.7,173.64,11.06904662]
[1730471341577,2.8801,173.7,173.65,2.8808]
[1730471341880,2.8801,173.7,173.64,11.06904662]
[1730471342067,2.8801,173.7,173.62,4.1]
[1730471342068,1.3315,173.73,173.68,11.06904662]
[1730471342269,2.5672,173.75,173.68,11.06904662]
[1730471343279,2.8796,173.73,173.7,2.88]
[1730471343589,2.5672,173.75,173.68,15.16904662]
[1730471343881,2.8794,173.74,173.7,2.88]
[1730471344479,1.2829,173.75,173.68,15.16904662]
[1730471344669,11.06904662,173.74,173.68,4.1]
[1730471344873,11.06904662,173.72,173.61,11.06904662]
[1730471345079,2.8804,173.68,173.62,4.1]
[1730471345277,1.2501,173.71,173.63,11.06904662]
[1730471345680,4.1301,173.71,173.67,2.8804]
[1730471345881,1.2501,173.71,173.67,2.8804]
[1730471346278,4.13,173.71,173.67,2.8804]
[1730471346482,1.2501,173.71,173.62,4.1]
[1730471346779,2.8803,173.69,173.62,4.1]
[1730471347181,2.8806,173.67,173.64,2.881]
[1730471347779,1.2501,173.71,173.62,4.1]
[1730471348080,11.06904662,173.69,173.59,11.06904662]
[1730471348281,11.06904662,173.69,173.6,4.1]
[1730471348480,2.8807,173.67,173.6,4.1]
[1730471349182,11.06904662,173.69,173.62,2.8814]
[1730471349384,2.8806,173.67,173.6,4.1]
[1730471349686,2.8806,173.67,173.58,4.1]
[1730471349687,11.06904662,173.67,173.58,4.1]
[1730471349883,2.8811,173.64,173.58,4.1]
[1730471350387,2.8811,173.64,173.6,2.8817]
[1730471351484,11.06904662,173.69,173.59,11.06904662]
[1730471352085,1.2501,173.71,173.61,11.06904662]
[1730471352086,12.31914662,173.71,173.61,11.06904662]
[1730471352582,11.06904662,173.66,173.58,4.1]
[1730471352787,11.06904662,173.64,173.58,4.1]
[1730471352987,2.8814,173.62,173.58,6.982]
[1730471353188,11.06904662,173.64,173.58,4.1]
[1730471353782,2.8815,173.62,173.58,6.9819]
[1730471353977,11.06904662,173.64,173.58,4.1]
[1730471354190,11.06904662,173.66,173.58,4.1]
[1730471354387,2.8809,173.65,173.6,2.8816]
[1730471354693,11.06904662,173.66,173.6,2.8816]
[1730471355193,11.06904662,173.66,173.58,6.9819]
[1730471355390,11.06904662,173.64,173.54,11.06904662]
[1730471355592,11.06904662,173.64,173.56,4.1]
[1730471356588,2.8813,173.63,173.57,2.8822]
[1730471356890,11.06904662,173.64,173.55,4.1]
[1730471357083,2.8815,173.62,173.56,2.8823]
[1730471357287,2.8815,173.62,173.55,4.1]
[1730471358189,2.8815,173.62,173.54,11.06904662]
[1730471358389,2.8817,173.61,173.54,4.1]
[1730471359287,1.2708,173.63,173.54,4.1]
[1730471359288,1.2708,173.63,173.56,2.8823]
[1730471359492,2.8815,173.62,173.56,2.8823]
[1730471360702,1.2708,173.63,173.56,2.8823]
[1730471360903,2.8816,173.61,173.56,2.8823]
[1730471361404,2.8817,173.6,173.55,2.8825]
[1730471361708,1.2708,173.63,173.5,11.06904662]
[1730471361709,11.06904662,173.59,173.5,11.06904662]
[1730471362103,11.06904662,173.59,173.49,4.1]
[1730471362303,2.8824,173.56,173.51,2.8832]
[1730471362504,5.3708,173.63,173.49,4.1]
[1730471362505,11.06904662,173.57,173.49,4.1]
[1730471362998,11.06904662,173.55,173.46,57.95364662]
[1730471363197,11.06904662,173.52,173.44,11.06904662]
[1730471363407,11.06904662,173.52,173.44,4.1]
[1730471363612,2.8835,173.5,173.45,2.8841]
[1730471363804,11.06904662,173.52,173.44,4.1]
[1730471365108,2.8832,173.51,173.46,2.884]
[1730471366912,2.8829,173.53,173.48,2.8836]
[1730471367202,11.06904662,173.54,173.44,15.16904662]
[1730471368003,2.8831,173.52,173.47,2.8837]
[1730471368306,2.8831,173.52,173.44,15.16904662]
[1730471368509,2.883,173.53,173.48,2.8837]
[1730471368900,2.883,173.53,173.44,15.16904662]
[1730471369298,2.883,173.53,173.48,2.8836]
[1730471369514,2.883,173.53,173.44,15.16904662]
[1730471369701,2.8827,173.55,173.46,11.06904662]
[1730471370300,2.8827,173.55,173.51,2.8831]
[1730471370501,4.1565,173.56,173.51,2.8831]
[1730471370710,4.1565,173.56,173.48,11.06904662]
[1730471370711,1.2741,173.56,173.48,11.06904662]
[1730471371011,1.2801,173.57,173.51,11.06904662]
[1730471371313,4.2116,173.58,173.51,11.06904662]
[1730471371512,11.06904662,173.61,173.51,11.06904662]
[1730471371810,2.882,173.59,173.51,11.06904662]
[1730471372411,2.882,173.59,173.55,2.8824]
[1730471372907,2.8822,173.57,173.51,11.06904662]
[1730471373517,2.8822,173.57,173.54,2.8827]
[1730471373703,11.06904662,173.59,173.5,4.1]
[1730471373908,2.8828,173.54,173.48,11.06904662]
[1730471374612,2.8826,173.55,173.51,2.8831]
[1730471375712,11.06904662,173.57,173.51,2.8831]
[1730471376114,2.8827,173.55,173.48,11.06904662]
[1730471376808,2.8827,173.55,173.52,2.8829]
[1730471377009,11.06904662,173.57,173.52,2.8829]
[1730471377214,2.8827,173.54,173.52,2.8829]
[1730471377602,2.8831,173.52,173.49,2.8835]
[1730471378109,1.2914,173.56,173.48,11.06904662]
[1730471378316,1.2914,173.56,173.51,2.8831]
[1730471379303,2.8827,173.54,173.51,2.8831]
[1730471379709,1.2914,173.56,173.48,11.06904662]
[1730471379910,4.1738,173.56,173.48,11.06904662]
[1730471380406,4.1738,173.56,173.52,2.8829]
[1730471380807,2.8828,173.54,173.46,15.16904662]
[1730471381012,12.36044662,173.56,173.46,15.16904662]
[1730471381516,11.06904662,173.51,173.39,11.06904662]
[1730471381715,11.06904662,173.51,173.39,13.66204662]
[1730471382019,2.8834,173.5,173.45,2.8841]
[1730471382622,2.8837,173.49,173.44,2.8843]
[1730471382923,2.8837,173.49,173.42,4.08]
[1730471383120,2.8837,173.49,173.44,2.8843]
[1730471383417,11.06904662,173.51,173.42,4.08]
[1730471383815,11.06904662,173.51,173.45,2.8841]
[1730471384021,2.8834,173.5,173.45,2.8841]
[1730471384418,2.8833,173.51,173.46,2.884]
[1730471385015,2.8834,173.5,173.46,2.884]
[1730471385513,11.06904662,173.53,173.41,11.06904662]
[1730471385823,11.06904662,173.53,173.41,15.14904662]
[1730471386413,2.8835,173.5,173.44,2.8843]
[1730471386713,2.8835,173.5,173.41,15.14904662]
[1730471387114,2.8835,173.5,173.45,2.8841]
[1730471387309,11.06904662,173.53,173.45,2.8841]
[1730471388121,2.8835,173.5,173.46,2.884]
[1730471388515,2.7226,173.55,173.41,15.14904662]
[1730471388516,11.06904662,173.51,173.41,15.14904662]
[1730471389324,2.8836,173.49,173.44,2.8843]
[1730471391019,11.06904662,173.51,173.41,15.14904662]
[1730471391322,2.8838,173.48,173.41,15.14904662]
[1730471391518,2.8838,173.48,173.39,2.593]
[1730471391519,11.06904662,173.48,173.39,13.66204662]
[1730471391724,11.06904662,173.48,173.41,2.8848]
[1730471391926,11.06904662,173.48,173.39,17.74204662]
[1730471392125,2.8839,173.47,173.43,2.8845]
[1730471392321,11.06904662,173.48,173.39,17.74204662]
[1730471392918,13.95284662,173.48,173.44,2.8844]
[1730471393814,11.06904662,173.48,173.39,4.08]
[1730471394014,2.8842,173.46,173.38,30.67824074]
[1730471394420,1.2986,173.47,173.38,30.67824074]
[1730471394620,4.1826,173.47,173.38,30.67824074]
[1730471395022,4.1826,173.47,173.42,2.8846]
[1730471395422,4.1826,173.47,173.38,30.67824074]
[1730471395623,4.1826,173.47,173.43,2.8844]
[1730471396219,4.1826,173.47,173.38,30.67824074]
[1730471396220,2.8842,173.46,173.41,2.8847]
[1730471396929,2.8842,173.46,173.38,4.08]
[1730471397124,2.8843,173.45,173.38,4.08]
[1730471397324,1.2986,173.47,173.39,2.8851]
[1730471397325,11.06904662,173.44,173.39,2.8851]
[1730471397827,2.8846,173.43,173.39,2.8851]
[1730471398216,11.06904662,173.44,173.36,4.08]
[1730471398431,13.95344662,173.44,173.4,2.8849]
[1730471398735,11.06904662,173.41,173.36,4.08]
[1730471398922,11.06904662,173.41,173.37,2.8855]
[1730471399123,11.06904662,173.41,173.36,4.08]
[1730471399320,11.06904662,173.43,173.36,4.08]
[1730471400133,13.95374662,173.43,173.39,2.8851]
[1730471400329,11.06904662,173.43,173.36,4.08]
[1730471400634,3.9415,173.47,173.37,11.06904662]
[1730471400635,2.8841,173.46,173.37,11.06904662]
[1730471400827,15.01054662,173.47,173.37,11.06904662]
[1730471401028,12.36764662,173.47,173.37,13.69374662]
[1730471401233,12.36764662,173.47,173.44,2.8843]
[1730471401430,12.36764662,173.47,173.37,15.02174662]
[1730471401729,2.8841,173.46,173.42,2.8846]
[1730471401925,12.36764662,173.47,173.37,15.02174662]
[1730471402336,2.8836,173.49,173.39,11.06904662]
[1730471402634,11.06904662,173.52,173.41,11.06904662]
[1730471402823,13.95214662,173.52,173.45,2.8842]
[1730471403024,13.95214662,173.52,173.42,4.1]
[1730471403423,1.3569,173.54,173.47,2.8839]
[1730471403629,11.06904662,173.56,173.48,4.1]
[1730471403823,11.06904662,173.69,173.48,4.1]
[1730471403824,13.70844662,173.59,173.48,15.16904662]
[1730471404022,2.6394,173.59,173.5,11.06904662]
[1730471404228,11.06904662,173.61,173.5,11.06904662]
[1730471404940,13.95064662,173.61,173.5,11.06904662]
[1730471405435,13.95064662,173.61,173.56,2.8823]
[1730471406628,11.06904662,173.61,173.5,11.06904662]
[1730471406937,11.06904662,173.63,173.52,11.06904662]
[1730471407135,1.3672,173.64,173.57,11.06904662]
[1730471407438,1.3672,173.64,173.56,4.08]
[1730471408333,11.06904662,173.68,173.58,11.06904662]
[1730471409225,2.8804,173.68,173.63,2.8811]
[1730471409428,2.8804,173.68,173.6,11.06904662]
[1730471409734,2.8811,173.64,173.59,2.8819]
[1730471410138,2.8811,173.64,173.57,2.6757]
[1730471410139,11.06904662,173.66,173.57,2.6757]
[1730471410341,11.06904662,173.66,173.61,2.8814]
[1730471410539,11.06904662,173.66,173.58,4.08]
[1730471411233,2.8809,173.65,173.6,2.8816]
[1730471411429,11.06904662,173.66,173.58,4.08]
[1730471411738,2.8807,173.67,173.58,4.08]
[1730471412133,2.8807,173.67,173.6,2.8816]
[1730471412332,2.5576,173.7,173.62,11.06904662]
[1730471412532,11.06904662,173.73,173.62,11.06904662]
[1730471412934,2.8798,173.72,173.67,2.8805]
[1730471413133,12.40194662,173.75,173.65,4.08]
[1730471413641,2.8799,173.72,173.67,2.8806]
[1730471413840,12.40194662,173.75,173.67,2.8806]
[1730471414042,2.8798,173.72,173.67,2.8806]
[1730471415141,12.40194662,173.75,173.65,15.14904662]
[1730471415439,12.40194662,173.75,173.68,2.8804]
[1730471415639,12.40194662,173.75,173.65,15.14904662]
[1730471415942,2.8797,173.73,173.69,2.8801]
[1730471416544,12.40194662,173.75,173.69,2.8801]
[1730471416844,2.8798,173.72,173.69,2.8801]
[1730471417044,11.06904662,173.7,173.65,4.08]
[1730471417344,1.3329,173.75,173.65,4.08]
[1730471417345,11.06904662,173.72,173.65,4.08]
[1730471417738,11.06904662,173.7,173.65,4.08]
[1730471418939,11.06904662,173.68,173.65,4.08]
[1730471419135,11.06904662,173.7,173.65,4.08]
[1730471419342,13.94874662,173.72,173.68,2.8803]
[1730471419734,12.40194662,173.75,173.65,4.08]
[1730471419938,12.40194662,173.75,173.68,2.8804]
[1730471419939,2.8797,173.73,173.68,2.8804]
[1730471420140,1.3329,173.75,173.65,15.14904662]
[1730471420344,11.06904662,173.72,173.65,4.08]
[1730471420546,2.88,173.71,173.65,4.08]
[1730471420843,11.06904662,173.7,173.65,4.08]
[1730471421349,11.06904662,173.72,173.65,4.08]
[1730471421546,11.06904662,173.74,173.65,15.14904662]
[1730471422052,2.8796,173.73,173.68,2.8803]
[1730471422250,11.06904662,173.74,173.66,2.92297405]
[1730471422446,11.06904662,173.76,173.66,5.56437405]
[1730471422644,11.06904662,173.76,173.67,11.06904662]
[1730471422846,11.06904662,173.76,173.68,2.8915752]
[1730471423046,11.06904662,173.79,173.67,12.43864662]
[1730471423257,11.06904662,173.79,173.69,11.06904662]
[1730471423852,13.94764662,173.79,173.69,11.06904662]
[1730471424554,11.06904662,173.79,173.69,11.06904662]
[1730471424755,11.06904662,173.79,173.67,4.18339822]
[1730471424756,17.70218892,173.8,173.67,4.18339822]
[1730471425248,2.8784,173.8,173.69,17.70218892]
[1730471426243,2.8784,173.8,173.73,2.8794]
[1730471426444,2.8783,173.81,173.74,4.08]
[1730471426648,2.8783,173.81,173.75,4.08]
[1730471426849,20.31838892,173.86,173.76,4.08]
[1730471427048,17.70218892,173.86,173.77,4.08]
[1730471427251,17.70218892,173.86,173.67,4.18339822]
[1730471427252,1.2702,173.91,173.81,2.8782]
[1730471427554,1.2702,173.91,173.79,2.9167369]
[1730471427756,17.70218892,173.89,173.78,4.08]
[1730471428451,17.70218892,173.89,173.78,6.94951162]
[1730471429250,17.70218892,173.89,173.76,3.9028]
[1730471429546,1.3534,173.88,173.77,4.08]
[1730471429749,17.70218892,173.86,173.72,17.70218892]
[1730471429948,17.70218892,173.83,173.73,4.08]
[1730471430159,17.70218892,173.8,173.73,4.08]
[1730471430352,17.70218892,173.8,173.7,41.48]
[1730471430655,17.70218892,173.8,173.71,4.08]
[1730471430854,17.70218892,173.8,173.63,2.5541]
[1730471430855,17.70218892,173.77,173.67,26.55203488]
[1730471431052,17.70218892,173.75,173.66,4.08]
[1730471431252,17.70218892,173.75,173.59,17.70218892]
[1730471431253,2.8804,173.68,173.59,2.8818]
[1730471431455,17.70218892,173.72,173.62,4.08]
[1730471431653,1.3693,173.71,173.62,4.08]
[1730471433357,1.3693,173.71,173.63,2.8812]
[1730471433558,2.8807,173.66,173.62,4.08]
[1730471433758,1.3693,173.71,173.62,4.08]
[1730471434961,2.8803,173.69,173.63,2.8812]
[1730471435257,1.3693,173.71,173.62,4.08]
[1730471435459,2.8798,173.72,173.66,2.8806]
[1730471436063,1.2947,173.74,173.62,21.78218892]
[1730471437363,2.8802,173.7,173.65,2.8808]
[1730471438267,18.99688892,173.74,173.62,21.78218892]
[1730471438460,2.8804,173.68,173.63,2.8812]
[1730471438758,18.99688892,173.74,173.62,4.08]
[1730471438965,17.70218892,173.71,173.58,42.7744]
[1730471439260,1.2477,173.7,173.59,4.08]
[1730471439468,2.8809,173.65,173.6,2.8817]
[1730471440260,1.3393,173.69,173.59,4.08]
[1730471440465,2.8815,173.62,173.59,4.08]
[1730471440762,17.70218892,173.68,173.56,2.83337634]
[1730471441065,2.8808,173.66,173.57,21.78218892]
[1730471441459,2.881,173.65,173.6,2.8817]
[1730471441661,2.881,173.65,173.57,21.78218892]
[1730471442055,2.8808,173.66,173.57,21.78218892]
[1730471442366,17.70218892,173.68,173.57,4.08]
[1730471442761,17.70218892,173.68,173.59,2.8819]
[1730471443265,2.8812,173.63,173.59,2.8819]
[1730471443467,17.70218892,173.68,173.59,2.8819]
[1730471444260,1.3393,173.69,173.6,2.8816]
[1730471444767,2.8813,173.63,173.57,21.78218892]
[1730471445067,1.3393,173.69,173.58,2.882]
[1730471445261,2.8813,173.63,173.57,21.78218892]
[1730471445661,17.70218892,173.68,173.55,1.3671]
[1730471446062,17.70218892,173.68,173.56,4.08]
[1730471446260,2.882,173.59,173.51,17.70218892]
[1730471446460,17.70218892,173.64,173.51,17.70218892]
[1730471446765,17.70218892,173.62,173.52,6.963]
[1730471447066,1.3256,173.61,173.52,6.963]
[1730471447456,1.3489,173.6,173.52,6.963]
[1730471447657,1.3489,173.6,173.53,2.8829]
[1730471447863,2.8823,173.57,173.52,4.08]
[1730471449269,2.8823,173.57,173.53,2.8828]
[1730471450668,2.8823,173.57,173.48,20.51440202]
[1730471450669,17.70218892,173.59,173.51,4.08]
[1730471450877,17.70218892,173.59,173.46,59.16218892]
[1730471451068,17.70218892,173.59,173.46,41.46]
[1730471451268,17.70218892,173.57,173.47,4.08]
[1730471451568,17.70218892,173.57,173.47,6.9637]
[1730471451756,17.70218892,173.57,173.47,4.08]
[1730471452159,17.70218892,173.57,173.4,21.69668892]
[1730471452365,17.70218892,173.54,173.41,4.08]
[1730471452666,2.6126,173.53,173.41,4.08]
[1730471453072,2.6126,173.53,173.42,4.08]
[1730471453464,17.70218892,173.51,173.37,17.70218892]
[1730471453674,1.2508,173.5,173.38,4.08]
[1730471453977,1.2508,173.5,173.37,17.70218892]
[1730471454271,2.8844,173.44,173.4,2.885]
[1730471454569,1.2508,173.5,173.37,4.08]
[1730471455269,2.8843,173.45,173.37,4.08]
[1730471455972,1.2508,173.5,173.37,21.78218892]
[1730471456377,2.8843,173.45,173.37,21.78218892]
[1730471456562,1.2508,173.5,173.37,21.78218892]
[1730471457575,2.8841,173.46,173.42,2.8847]
[1730471458774,2.8839,173.47,173.42,2.8847]
[1730471459175,1.2508,173.5,173.42,2.8847]
[1730471459371,2.8842,173.46,173.41,2.8849]
[1730471460069,2.8842,173.46,173.42,2.8847]
[1730471460271,17.70218892,173.51,173.36,21.78218892]
[1730471460577,1.3591,173.49,173.36,21.78218892]
[1730471460874,1.3591,173.49,173.36,24.63799595]
[1730471461076,1.3591,173.49,173.37,2.7389]
[1730471461280,1.3591,173.49,173.4,17.70218892]
[1730471461581,2.8838,173.48,173.43,2.8844]
[1730471461780,1.3591,173.49,173.43,2.8844]
[1730471462083,1.3591,173.49,173.42,4.08]
[1730471462383,2.8839,173.47,173.42,6.9646]
[1730471462671,2.8839,173.47,173.42,4.08]
[1730471463078,4.2427,173.49,173.44,2.8842]
[1730471463374,4.2427,173.49,173.42,4.08]
[1730471463684,4.2427,173.49,173.44,2.8842]
[1730471463872,2.8838,173.48,173.42,4.08]
[1730471464483,2.8838,173.48,173.44,2.8843]
[1730471464983,2.884,173.47,173.42,6.9646]
[1730471465277,1.3591,173.49,173.42,6.9646]
[1730471465472,1.3591,173.49,173.44,2.8844]
[1730471465473,2.8837,173.48,173.44,2.8844]
[1730471465869,2.8837,173.48,173.42,4.08]
[1730471466065,1.3591,173.49,173.42,4.08]
[1730471466670,4.2427,173.49,173.44,2.8842]
[1730471466866,4.2427,173.49,173.42,4.08]
[1730471467074,1.3331,173.53,173.42,4.08]
[1730471467274,2.8832,173.51,173.42,4.08]
[1730471468268,2.8831,173.52,173.42,4.08]
[1730471468477,2.8831,173.52,173.45,11.06894857]
[1730471468686,1.3331,173.53,173.48,2.8836]
[1730471468885,1.3331,173.53,173.45,11.06894857]
[1730471469080,2.8831,173.52,173.45,11.06894857]
[1730471469282,1.3331,173.53,173.47,2.8837]
[1730471469582,2.8833,173.51,173.47,2.8837]
[1730471470978,1.3331,173.53,173.42,4.08]
[1730471471486,2.8842,173.46,173.42,4.08]
[1730471471685,17.7104282,173.51,173.42,4.08]
[1730471471881,17.7104282,173.48,173.34,17.7104282]
[1730471472078,1.3481,173.47,173.35,4.08]
[1730471473083,2.8844,173.45,173.35,4.08]
[1730471473882,2.8845,173.44,173.39,2.8851]
[1730471474289,2.8845,173.44,173.35,4.08]
[1730471474290,2.8845,173.44,173.4,2.885]
[1730471474680,1.3481,173.47,173.37,17.7104282]
[1730471474884,1.3481,173.47,173.41,2.8848]
[1730471474885,2.8843,173.45,173.41,2.8848]
[1730471475582,2.8841,173.46,173.42,2.8846]
[1730471475882,1.3481,173.47,173.37,17.7104282]
[1730471476189,1.3547,173.52,173.39,17.7104282]
[1730471476390,1.3428,173.51,173.39,17.7104282]
[1730471476588,1.3428,173.51,173.44,2.8844]
[1730471476993,1.3428,173.51,173.41,4.08]
[1730471476994,1.3428,173.51,173.42,17.7104282]
[1730471477186,2.8836,173.49,173.42,17.7104282]
[1730471478288,2.8836,173.49,173.44,2.8843]
[1730471478478,2.8836,173.49,173.42,17.7104282]
[1730471478479,2.8835,173.5,173.42,17.7104282]
[1730471479290,2.8835,173.5,173.46,2.8839]
[1730471480199,2.8837,173.49,173.42,17.7104282]
[1730471480586,2.8837,173.49,173.46,2.884]
[1730471481390,1.3331,173.53,173.41,4.08]
[1730471481592,19.0435282,173.53,173.41,4.08]
[1730471482689,2.8839,173.47,173.43,2.8844]
[1730471482989,19.0435282,173.53,173.37,17.7104282]
[1730471483191,17.7104282,173.5,173.37,17.7104282]
[1730471483493,1.3556,173.49,173.37,4.08]
[1730471483693,2.8848,173.42,173.38,2.8852]
[1730471483894,17.7104282,173.47,173.38,2.8852]
[1730471484079,1.2894,173.46,173.38,2.8852]
[1730471484285,2.885,173.41,173.38,2.8852]
[1730471484490,1.2894,173.46,173.37,4.08]
[1730471485081,1.2894,173.46,173.42,2.8847]
[1730471485282,1.2894,173.46,173.37,21.7904282]
[1730471485689,2.8845,173.44,173.41,2.8848]
[1730471485897,1.2894,173.46,173.37,21.7904282]
[1730471486195,1.2894,173.46,173.37,4.08]
[1730471486896,2.885,173.41,173.38,2.8853]
[1730471487098,2.885,173.41,173.36,4.08]
[1730471488184,2.885,173.41,173.37,2.8854]
[1730471488985,2.885,173.41,173.35,21.7904282]
[1730471488986,1.2894,173.46,173.35,21.7904282]
[1730471489394,1.3556,173.49,173.38,17.7104282]
[1730471489589,1.3247,173.52,173.4,17.7104282]
[1730471489896,1.3247,173.52,173.44,2.8843]
[1730471489897,2.8838,173.48,173.44,2.8843]
[1730471490696,2.8838,173.48,173.41,5.4203]
[1730471490697,2.8842,173.46,173.42,13.95765105]
[1730471491501,11.07305105,173.5,173.41,6.9647]
[1730471492194,2.8843,173.45,173.41,6.9647]